Cogmind - Beta 15 *** ADVENTURER MODE // 2025.10.13 @ 18:05:17 Player: time Result: Destroyed by as-87864 with Assembled Heavy Rifle Performance ------------- Evolutions (0) 0 Regions Visited (2) 400 Robots Destroyed (12) 60 Value Destroyed (163) 163 Prototype IDs (0) 0 Alien Tech Used (0) 0 Bonus (0) 0 TOTAL SCORE: 623 Bonus ------- None Cogmind --------- Core Integrity 0/250 Matter 271/300 Energy 88/100 System Corruption 1% Temperature Cool (0) Movement Core (50) Location -10/Mines Parts ------- > --- POWER (1) -------- (None) > --- PROPULSION (2) --- (None) > --- UTILITY (2) ------ (None) > --- WEAPON (2) ------- (None) > --- INVENTORY (5) ---- Small Storage Unit Small Laser Assault Rifle Peak State ------------ > --- POWER ------------ Light Ion Engine > --- PROPULSION ------- Wheel Wheel > --- UTILITY ---------- Small Storage Unit Improved Terrain Scanner > --- WEAPON ----------- EM Pulse Gun Assault Rifle > --- INVENTORY -------- Light Ion Engine Aluminum Leg Aluminum Leg Small Laser [Rating: 9] Favorites ----------- Power Light Ion Engine Engine Light Ion Engine Power Core Light Nuclear Core Propulsion Wheel Leg Aluminum Leg Wheel Wheel Utility Small Storage Unit Device Seismic Detector Storage Small Storage Unit Weapon Assault Rifle Energy Gun EM Pulse Gun Ballistic Gun Assault Rifle Build | -11 -10 -10 ------- Run | Yrd Mat Min Slots Evolved . | . . . Power . | . . . Propulsion . | . . . Utility . | . . . Weapon . | . . . Parts Attached 16 | 8 . 8 Power 3 | 1 . 2 Engine 2 | 1 . 1 Core 1 | . . 1 Reactor . | . . . Propulsion 6 | 2 . 4 Treads . | . . . Leg 2 | . . 2 Wheel 4 | 2 . 2 Hover . | . . . Flight . | . . . Utility 3 | 3 . . Device 2 | 2 . . Storage 1 | 1 . . Processor . | . . . Hackware . | . . . Protection . | . . . Artifact . | . . . Weapon 4 | 2 . 2 Energy Gun 1 | 1 . . Energy Cannon . | . . . Ballistic Gun 3 | 1 . 2 Ballistic Cannon . | . . . Launcher . | . . . Special Weapon . | . . . Impact Weapon . | . . . Slashing Weapon . | . . . Piercing Weapon . | . . . Special Melee Weapon . | . . . Unidentified Prototypes . | . . . Parts Lost 12 | . . 12 Power 2 | . . 2 Propulsion 6 | . . 6 Utility 1 | . . 1 Weapon 3 | . . 3 Highest Loss Streak 11 | . . 11 To Critical Strikes . | . . . Average Backups 3 | 3 4 4 Power . | . 1 1 Propulsion 1 | 1 2 1 Utility . | . . . Weapon 1 | . 1 1 Tool/Special . | . . . Unused Backups 3 | 1 . 2 Power 1 | . . 1 Propulsion 1 | 1 . . Utility . | . . . Weapon 1 | . . 1 Tool/Special . | . . . Average Slot Usage (%) 98 | . 98 98 Engine 11 | . 13 7 Core 2 | . . 5 Leg 1 | . . 4 Wheel 25 | . 27 23 Device 14 | . 14 14 Storage 14 | . 14 14 Energy Gun 10 | . 14 3 Ballistic Gun 17 | . 13 24 Peak Build Rating 9 | 9 7 9 Average Rating 6 | 5 6 7 On Entrance 4 | . 7 7 Naked Turns 3 | . . 3 Heaviest Build 14 | 13 13 14 Greatest Support 20 | 20 20 20 Greatest Overweight (x) 1 | 1 1 1 Average Overweight (x) . | . . . Largest Inventory Capacity 8 | 8 8 8 Average Capacity 7 | 7 8 7 Most Carried 6 | 5 4 6 Average Carried 3 | 3 4 4 Final Capacity 8 | 8 8 5 Final Carried 5 | 5 4 3 Class Distribution -------------------- 87% | Mutant 12% | Scavenger-Mutant Dominant Class ---------------- Mutant | -10/Materials Scavenger-Mutant | -10/Mines Resources | -11 -10 -10 ----------- Run | Yrd Mat Min Matter Collected 399 | 286 30 83 Remotely . | . . . Salvage Created 382 | 129 106 147 Parts 22 | 7 4 11 Haulers Intercepted 1 | . 1 . Recyclers Shooed . | . . . Parts Field Recycled . | . . . Retrieved Matter . | . . . Parts Self-Destructed . | . . . Prevented . | . . . Kills | -11 -10 -10 ------- Run | Yrd Mat Min Combat Hostiles Destroyed 8 | . 3 5 Guns 8 | . 3 5 Classes Destroyed 5 | 2 2 1 Tunneler 2 | 2 . . Hauler 1 | . 1 . Recycler 1 | 1 . . Swarmer 6 | . 3 3 Grunt 2 | . . 2 Best Kill Streak 3 | 3 3 3 Combat Bots Only 3 | . 3 3 Max Kills in Single Turn 2 | 1 2 1 Gunslinging 1 | . 1 . Exploded . | . . . Melee . | . . . Uniques/NPCs Destroyed . | . . . Combat | -11 -10 -10 -------- Run | Yrd Mat Min Hostile Shots Fired 119 | . 8 111 Missed 32 | . 1 31 Hits 87 | . 7 80 Melee 5 | . . 5 Projectile 82 | . 7 75 AOE 3 | . . 3 Critical Strikes 2 | . . 2 Damage Taken 1003 | . 52 951 Core 258 | . 7 251 Absorbed by Shields . | . . . Ignored by Resistances 287 | . 14 273 Core Remaining (%) 100 | 100 . . Volleys Fired 30 | 8 9 13 Largest 2 | 2 2 2 Hottest 60 | 60 60 60 Shots Fired 59 | 16 18 25 Gun 59 | 16 18 25 Cannon . | . . . Launcher . | . . . Special . | . . . Kinetic 38 | 8 9 21 Thermal . | . . . Explosive . | . . . Electromagnetic 21 | 8 9 4 Robot Hit Streak 16 | 7 9 16 Robot Miss Streak 2 | 2 1 2 Penetration Max . | . . . Secondary Targets 2 | . 1 1 Max Gunslinging Chain 1 | . 1 1 Shots Hit Robots 45 | 11 14 20 Core Hits 18 | 4 5 9 Critical Kills . | . . . Critical Parts Destroyed . | . . . Critical Strikes 1 | 1 . . Corrupt 1 | 1 . . Melee Attacks . | . . . Impact . | . . . Slashing . | . . . Piercing . | . . . Sneak Attacks . | . . . Combat Hostiles . | . . . Follow-up Attacks . | . . . Damage Inflicted 559 | 151 194 214 Guns 559 | 151 194 214 Cannons . | . . . Explosions . | . . . Melee . | . . . Ramming . | . . . Kinetic 321 | 53 100 168 Thermal . | . . . Explosive . | . . . Electromagnetic 238 | 98 94 46 Impact . | . . . Slashing . | . . . Piercing . | . . . Highest Corruption 1 | . . 1 Average Corruption 1 | . . 1 Corruption Purged . | . . . Corruption Blocked . | . . . Overload Shots . | . . . Overflow Damage . | . . . Projectiles . | . . . Explosions . | . . . Melee . | . . . Knockbacks . | . . . Impact . | . . . Kinetic . | . . . Secondary . | . . . Self-Inflicted Damage . | . . . Shots . | . . . Rammed . | . . . Targets Rammed . | . . . Kicked . | . . . Crushed . | . . . Highest Temperature 63 | . . 63 Average Temperature 19 | . . 19 Received Heat Transfer 159 | . . 159 Siege Activations . | . . . Martial Activations . | . . . Shielding Activations . | . . . Robots Disrupted . | . . . Combat Hostiles . | . . . Robots Corrupted . | . . . Combat Hostiles . | . . . Parts Fried 2 | 2 . . Impact Corruptions . | . . . Robots Melted . | . . . Combat Hostiles . | . . . Parts Melted . | . . . Heat Transferred . | . . . Parts Sabotaged . | . . . Parts Stolen . | . . . Parts Stripped . | . . . Power Chain Reactions . | . . . Alert | -11 -10 -10 ------- Run | Yrd Mat Min Maximum Alert Level . | . . . Low Security (%) 100 | 100 100 100 Level 1 . | . . . Level 2 . | . . . Level 3 . | . . . Level 4 . | . . . Level 5 . | . . . High Security . | . . . Max Security . | . . . Peak Influence 93 | 10 70 93 Initial 3 | . . 3 Average 33 | 1 33 58 Influence Increases 236 | 15 101 120 Destroy 0b10 Robot/C 160 | . 60 100 Destroy 0b10 Robot/NC 20 | 15 5 . Destroy Leader 32 | . 12 20 Successful Hack 24 | . 24 . Influence Decreases 236 | 15 90 131 Entered New Map 8 | . . 8 Time Decay 155 | 15 90 50 Lost Part 73 | . . 73 Squads Dispatched 1 | . 1 . Investigation 1 | . 1 . Extermination . | . . . Reinforcement . | . . . Assault . | . . . Garrison . | . . . Intercept . | . . . Searches Triggered . | . . . Construction Impeded . | . . . Haulers Reinforced . | . . . Active Scanning Responses . | . . . Cargo Convoy Interrupts . | . . . Stealth | -11 -10 -10 --------- Run | Yrd Mat Min Distress Signals . | . . . Communications Jammed . | . . . Distress Signals . | . . . Times Spotted 33 | . 8 25 Peak Tracking Total 20 | . 3 20 Tactical Retreats 1 | . . 1 Traps | -11 -10 -10 ------- Run | Yrd Mat Min Traps Triggered 1 | . 1 . Indirectly . | . . . Trap Hack Attempts . | . . . Triggered . | . . . Disarmed . | . . . Reprogrammed . | . . . Reused . | . . . Traps Extracted . | . . . Installed . | . . . Triggered . | . . . Machines | -11 -10 -10 ---------- Run | Yrd Mat Min Machines Disabled . | . . . Max in Single Turn . | . . . Machines Repaired . | . . . Machines Dismantled . | . . . Machines Sabotaged . | . . . Overloaded Fab Kills . | . . . Hacking | -11 -10 -10 --------- Run | Yrd Mat Min Machines Accessed 5 | . 5 . Terminals 4 | . 4 . Fabricators . | . . . Repair Stations . | . . . Recycling Units 1 | . 1 . Scanalyzers . | . . . Garrison Access . | . . . Total Hacks 10 | . 10 . Successful 7 | . 7 . Failed 3 | . 3 . Catastrophic 1 | . 1 . Database Lockouts . | . . . Manual . | . . . Terminals 9 | . 9 . Fabricators . | . . . Repair Stations . | . . . Recycling Units 1 | . 1 . Scanalyzers . | . . . Garrison Access . | . . . Terminal Hacks 6 | . 6 . Record 5 | . 5 . Security Status 1 | . 1 . Fabricator Hacks . | . . . Repair Station Hacks . | . . . Recycling Unit Hacks 1 | . 1 . Report Inventory 1 | . 1 . Scanalyzer . | . . . Garrison Access Hacks . | . . . Unauthorized Hacks . | . . . Terminals . | . . . Fabricators . | . . . Repair Stations . | . . . Recycling Units . | . . . Scanalyzers . | . . . Garrison Access . | . . . Data Cores Recovered . | . . . Used . | . . . Hacking Detections 5 | . 5 . Full Trace Events 1 | . 1 . Feedback Events . | . . . Feedback Blocked . | . . . Robot Schematics Acquired . | . . . Robots Built . | . . . Authchips . | . . . Time . | . . . Total Robot Build Rating . | . . . Part Schematics Acquired . | . . . Parts Built . | . . . Authchips . | . . . Time . | . . . Total Part Build Rating . | . . . Parts Repaired . | . . . Time . | . . . Parts Recycled . | . . . Recycled Matter . | . . . Retrieved Matter . | . . . Retrieved Components . | . . . Parts Scanalyzed . | . . . Part Schematics Acquired . | . . . Parts Damaged . | . . . Bothacking | -11 -10 -10 ------------ Run | Yrd Mat Min Used RIF Installer . | . . . Robots Hacked . | . . . Non-combat . | . . . Combat . | . . . Robot Hacks Applied . | . . . Relay Couplers Released . | . . . Fabnet Peak Effective % . | . . . Robots Rewired . | . . . Allies Hacked . | . . . Hacks Repelled . | . . . Allies | -11 -10 -10 -------- Run | Yrd Mat Min Total Allies . | . . . Largest Group . | . . . Highest-Rated Group . | . . . Highest-Rated Ally . | . . . Total Orders . | . . . Ally Attacks . | . . . Total Damage . | . . . Kills . | . . . Allies Corrupted . | . . . Allies Melted . | . . . Intel | -11 -10 -10 ------- Run | Yrd Mat Min Active Infowar (turns) 327 | 12 208 107 Terrain 3 | 3 . . Seismic 324 | 9 208 107 Robot Analysis Total . | . . . Derelict Logs Recovered . | . . . Drone Launches . | . . . Drone Recoveries . | . . . Exploration | -11 -10 -10 ------------- Run | Yrd Mat Min Turns Passed 417 | 94 208 115 Spaces Moved 343 | 65 216 62 Core 7 | 3 . 4 Treads . | . . . Legs 3 | . . 3 Wheels 333 | 62 216 55 Hover . | . . . Flight . | . . . Fastest Speed 50 | 50 80 50 Average Speed 79 | 79 80 80 Slowest Speed 120 | 100 95 120 Overloaded Moves . | . . . Propulsion Burnouts . | . . . Robots Hopped . | . . . Potential Cave-ins . | . . . Cave-ins Triggered . | . . . Exploration Rate (%) 23 | 4 47 20 Regions Visited 2 Branch Regions 1 Pre-discovered Areas . | . . . Known Exits Taken . | . . . Unknown Exits Taken 2 | 1 1 . Scrap Searched . | . . . Spaces Dug . | . . . Terrain Destroyed . | . . . Melee . | . . . Projectile . | . . . AOE . | . . . Terrain Rammed . | . . . Walls Destroyed . | . . . Machines Disabled . | . . . Actions | -11 -10 -10 --------- Run | Yrd Mat Min Total 423 | 88 231 104 Wait 17 | . 3 14 Move 341 | 64 215 62 Hop . | . . . Pick Up 8 | 6 . 2 Fast Attach 12 | 7 3 2 Attach 6 | 1 . 5 Detach 3 | 1 . 2 Swap 2 | . . 2 Drop 4 | 1 1 2 Fire 30 | 8 9 13 Melee . | . . . Ram . | . . . Kick . | . . . Crush . | . . . Escape Stasis . | . . . Rewire . | . . . Trap . | . . . Miscellaneous . | . . . Route ------- -11/Scrapyard -10/Materials (discovered 2 exits: [*Min x2]) -10/Mines History --------- Turn | Location | Event 17 | -11/Scrapyard | Discovered new exit (range 14) 95 | -11/Scrapyard | Entered Materials 96 | -10/Materials | Discovered new exit (range 7) 257 | -10/Materials | Discovered new exit (range 8) 302 | -10/Materials | Build established: Mutant 303 | -10/Materials | Entered Mines 375 | -10/Mines | Assembled infested the area 411 | -10/Mines | Core integrity fell below 50% 415 | -10/Mines | Core integrity fell below 20% 418 | -10/Mines | Destroyed by as-87864 with Assembled Heavy Rifle Last Messages --------------- D-53 Grenadier unfolds itself. Acquired Wheel. Aluminum Leg destroyed. Seismic Detector destroyed. System corrupted by crushing effect (+1). as-94166 sneak attacks. K-01 Serf destroyed. Lgt. Assault Rifle destroyed. as-28763 destroyed. K-01 Serf collects debris. Destroyed Asb. Hover Unit. Aluminum Leg destroyed. as-46420 destroyed. K-01 Serf destroyed. as-54456 destroyed. Wheel destroyed. Lgt. Assault Rifle destroyed. Lgt. Ion Engine destroyed. Wheel destroyed. as-28412 destroyed. Map ----- +----------------------------------------------------+ | ?????????????????# ?????????????????????????????? | | ?????????????????# ?????????????????????????????? | | ????????????????## #####????????????????????????? | | ????????????????# #?####???????????????????? | | ????????????????# ### ##??????????????????? | | ????????????????# ## ##?????????????????? | | ????????????????# ## #?????????????????? | | ????????????????# """" ##????????????????? | | ????????????????# """" #%# #????????????????? | | ????????????????# """" #%## #??????????????? | | ????????????????###### ## ### #?????????????? | | ???????????????####### ##%#?? #?????????????? | | ?????????????# #??# #?????????????? | | ???????????????########## #???# ##?????????????? | | ????????????????????????#d#????####??????????????? | | ????????????????????????#d#??????????????????????? | | ?????????????????????#### ####???????????????????? | | ?????????????????????# a ##??????????????????? | | ?????????????????????# % #??????????????????? | | ?????????????????????# #??????????????????? | | ?????????????????????# #??????????????????? | | ???????????????????### ##?????????????????? | | ?????????????????### * a #?????????????????? | | ????????????????## a ###?????????????????? | | ????????????????# #??????????????????? | | ????????????????# @ ##??????????????????? | | ????????????????# ####???????????????????? | | ????????????????# ##??????????????????????? | | ????????????????## #???????????????????????? | | ?????????????????# #???????????????????????? | | ?????????????????## #???????????????????????? | | ??????????????????## a ###########?????????????? | | ???????????????????#aaaa #?????????????? | | ???????????????##### a $ #?????????????? | | ???????????????# aa ###### ????????????? | | ??????????????# #?????????????????????? | | ????????? $ ##?????????????????????? | | ???????? ####??????????????????????? | | ???????? ##### ####?????????????????????????? | | ??????????????######?????????????????????????????? | | ?????????????????????????????????????????????????? | | ?????????????????????????????????????????????????? | | ?????????????????????????????????????????????????? | | | | | | | | | | | | | | | +----------------------------------------------------+ Best States ------------- Heat Dissipation 25 Energy Generation 14 Energy Capacity 160 Matter Stores 300 Matter Capacity 300 Sight Range 16 Terrain Scan Density 10 Resistance: KI 20 Resistance: TH 20 Resistance: EX 20 Resistance: EM 20 Resistance: I 20 Resistance: S 20 Resistance: P 20 Evasion (%) 44 Offensive Hacking 10 Item Schematics ----------------- None Robot Schematics ------------------ None Fabricated ------------ Nothing Repaired ---------- Nothing Alien Tech Used ----------------- None Achievements -------------- Hunted Challenges ------------ None Game ------ Seed DeliveryTechShearcannon Manual? 0 Play Time 00:08:41 Cumulative 7.6 hours Start 2025.10.13 @ 17:58:39 End 2025.10.13 @ 18:05:17 Sessions 1 Manual Loads 0 Difficulty Adventurer Special Mode None Game No. 16 Rogue 8 Adventurer 8 Explorer 0 Win Type - Total 0 Types 0/0/0/0/0/0/0/0/0/0 Lore% 2 Gallery% 20 Achievement% 14 Wizard Run 0 Options --------- Layout 1 ASCII 0 Keyboard 1 Movement Numpad Keybinds 0 Fullscreen 1 Font 24/Smallcaps Map View 50x35 Zoom Use 0% Tactical HUD 0 Map Filters NONE Filters NONE Steam 1 RUN: ecdbdfb2-8fab-419f-aec6-58be1f424ef5